bitfinex-derivatives/quotes_BTCF0:USTF0_20241006
["timestamp","ask_amount","ask_price","bid_price","bid_amount"]
[1728197621861,0.064516,62003.0,62002.0,0.16321538]
[1728197622760,0.064516,62003.0,62002.0,0.138]
[1728197622961,0.064516,62003.0,62002.0,0.16321565]
[1728197623161,0.064516,62003.0,62002.0,0.138]
[1728197623348,0.064516,62003.0,62002.0,0.14612131]
[1728197626768,0.064516,62003.0,62002.0,0.22674644]
[1728197627659,0.064516,62003.0,62002.0,0.32886162]
[1728197627859,0.064516,62003.0,62002.0,0.22674644]
[1728197628062,0.064516,62003.0,62002.0,0.32884791]
[1728197628963,0.064516,62003.0,62002.0,0.14612131]
[1728197629565,0.064516,62003.0,62002.0,0.32891048]
[1728197629866,0.064516,62003.0,62002.0,0.32886557]
[1728197630463,0.064516,62003.0,62002.0,0.22674644]
[1728197630768,0.064516,62003.0,62002.0,0.32888054]
[1728197631171,0.08780824,62003.0,62002.0,0.24825541]
[1728197631560,0.064516,62003.0,62002.0,0.24825541]
[1728197631970,0.064516,62003.0,62002.0,0.32876878]
[1728197632156,0.064516,62003.0,62002.0,0.24825541]
[1728197633872,0.064516,62003.0,62002.0,0.14612131]
[1728197635273,0.064516,62003.0,62002.0,0.21055601]
[1728197635466,0.064516,62003.0,62002.0,0.14612131]
[1728197635666,0.064516,62003.0,62002.0,0.21055601]
[1728197636772,0.064516,62003.0,62002.0,0.14612131]
[1728197637476,0.064516,62003.0,62002.0,0.21055601]
[1728197637675,0.064516,62003.0,62002.0,0.14612131]
[1728197638276,0.064516,62003.0,62002.0,0.21055601]
[1728197639171,0.064516,62003.0,62002.0,0.14612131]
[1728197639975,0.064516,62003.0,62002.0,0.21061526]
[1728197640168,0.064516,62003.0,62002.0,0.14612131]
[1728197640769,0.064516,62003.0,62002.0,0.2484639]
[1728197642468,0.064516,62003.0,62002.0,0.34521379]
[1728197642665,0.064516,62003.0,62002.0,0.2484639]
[1728197645972,0.064516,62003.0,62002.0,0.34521379]
[1728197648280,0.064516,62003.0,62002.0,0.37042924]
[1728197648768,0.064516,62003.0,62002.0,0.17133677]
[1728197650673,0.064516,62003.0,62002.0,0.17133682]
[1728197651075,0.064516,62003.0,62002.0,0.17133683]
[1728197653575,0.064516,62003.0,62002.0,0.03612131]
[1728197655776,0.064516,62003.0,62002.0,0.23521328]
[1728197656079,0.064516,62003.0,62002.0,0.26042884]
[1728197657682,0.064516,62003.0,62002.0,0.13851274]
[1728197658678,0.064516,62003.0,62002.0,0.23532384]
[1728197658880,0.064516,62003.0,62002.0,0.16372826]
[1728197660383,0.064516,62003.0,62002.0,0.13851274]
[1728197660582,0.064516,62003.0,62002.0,0.16372823]
[1728197662484,0.064516,62003.0,62002.0,0.2604835]
[1728197662687,0.064516,62003.0,62002.0,0.13845956]
[1728197662881,0.064516,62003.0,62002.0,0.16367575]
[1728197663980,0.064516,62003.0,62002.0,0.26048417]
[1728197664594,0.064516,62003.0,62002.0,0.26048356]
[1728197665382,0.064516,62003.0,62002.0,0.16367514]
[1728197666179,0.064516,62003.0,62002.0,0.13845956]
[1728197666375,0.174516,62003.0,62002.0,0.13845956]
[1728197666578,0.174516,62003.0,62002.0,0.21913676]
[1728197668786,0.535316,62003.0,62002.0,0.21913676]
[1728197669985,0.174516,62003.0,62002.0,0.21913676]
[1728197670289,0.535316,62003.0,62002.0,0.21913676]
[1728197670483,0.174516,62003.0,62002.0,0.21913676]
[1728197670691,0.535316,62003.0,62002.0,0.21913676]
[1728197670993,0.535316,62003.0,62002.0,0.03612131]
[1728197671179,0.174516,62003.0,62002.0,0.03612131]
[1728197671375,0.535316,62003.0,62002.0,0.03612131]
[1728197671777,0.425316,62003.0,62002.0,0.03612131]
[1728197672096,0.425316,62003.0,62002.0,0.10064649]
[1728197672486,0.064516,62003.0,62002.0,0.10064649]
[1728197672788,0.425316,62003.0,62002.0,0.10064649]
[1728197673585,0.064516,62003.0,62002.0,0.10064649]
[1728197673790,0.425316,62003.0,62002.0,0.10064649]
[1728197675591,0.064516,62003.0,62002.0,0.10064649]
[1728197675789,0.425316,62003.0,62002.0,0.03612131]
[1728197676490,0.425316,62003.0,62002.0,0.10064039]
[1728197676889,0.425316,62003.0,62002.0,0.03612131]
[1728197677690,0.425316,62003.0,62002.0,0.10063996]
[1728197678189,0.425316,62003.0,62002.0,0.1006409]
[1728197678887,0.425316,62003.0,62002.0,0.21919586]
[1728197679092,0.425316,62003.0,62002.0,0.13851866]
[1728197679492,0.425316,62003.0,62002.0,0.21916959]
[1728197680486,0.064516,62003.0,62002.0,0.21916959]
[1728197680686,0.425316,62003.0,62002.0,0.21916959]
[1728197680886,0.064516,62003.0,62002.0,0.21916959]
[1728197681095,0.425316,62003.0,62002.0,0.21916959]
[1728197681596,0.064516,62003.0,62002.0,0.21916959]
[1728197682194,0.425316,62003.0,62002.0,0.21916959]
[1728197682485,0.064516,62003.0,62002.0,0.21916959]
[1728197682687,0.425316,62003.0,62002.0,0.21916959]
[1728197683096,0.064516,62003.0,62002.0,0.21916959]
[1728197683298,0.425316,62003.0,62002.0,0.21916959]
[1728197685098,0.064516,62003.0,62002.0,0.21916959]
[1728197685601,0.425316,62003.0,62002.0,0.21916959]
[1728197686202,0.064516,62003.0,62002.0,0.13851866]
[1728197687113,0.425316,62003.0,62002.0,0.13851866]
[1728197688203,0.425316,62003.0,62002.0,0.13852095]
[1728197689407,0.064516,62003.0,62002.0,0.13852095]
[1728197689602,0.425316,62003.0,62002.0,0.13852095]
[1728197689807,0.064516,62003.0,62002.0,0.13852095]
[1728197690388,0.425316,62003.0,62002.0,0.13852095]
[1728197690593,0.064516,62003.0,62002.0,0.13852095]
[1728197690794,0.425316,62003.0,62002.0,0.13852095]
[1728197691004,0.064516,62003.0,62002.0,0.13852095]
[1728197691202,0.425316,62003.0,62002.0,0.13852095]
[1728197691794,0.425316,62003.0,62002.0,0.13853042]
[1728197692790,0.064516,62003.0,62002.0,0.13853042]
[1728197693195,0.425316,62003.0,62002.0,0.13853042]
[1728197693902,0.064516,62003.0,62002.0,0.13853042]
[1728197694199,0.425316,62003.0,62002.0,0.03612131]
[1728197694400,0.064516,62003.0,62002.0,0.03612131]
[1728197694706,0.425316,62003.0,62002.0,0.03612131]
[1728197694902,0.064516,62003.0,62002.0,0.03612131]
[1728197695496,0.425316,62003.0,62002.0,0.03612131]
[1728197696308,0.064516,62003.0,62002.0,0.03612131]
[1728197696507,0.425316,62003.0,62002.0,0.03612131]
[1728197697198,0.064516,62003.0,62002.0,0.03612131]
[1728197697399,0.425316,62003.0,62002.0,0.03612131]
[1728197698409,0.064516,62003.0,62002.0,0.03612131]
[1728197698900,0.425316,62003.0,62002.0,0.03612131]
[1728197699099,0.064516,62003.0,62002.0,0.03612131]
[1728197699299,0.425316,62003.0,62002.0,0.03612131]
[1728197700108,0.064516,62003.0,62002.0,0.03612131]
[1728197700299,0.425316,62003.0,62002.0,0.03612131]
[1728197701106,0.064516,62003.0,62002.0,0.23539145]
[1728197701300,0.425316,62003.0,62002.0,0.23539145]
[1728197701502,0.064516,62003.0,62002.0,0.23539145]
[1728197701702,0.425316,62003.0,62002.0,0.23539145]
[1728197702204,0.064516,62003.0,62002.0,0.23539145]
[1728197702597,0.425316,62003.0,62002.0,0.23539145]
[1728197702799,0.064516,62003.0,62002.0,0.23539145]
[1728197702999,0.425316,62003.0,62002.0,0.23539145]
[1728197703210,0.064516,62003.0,62002.0,0.23539145]
[1728197704503,0.425316,62003.0,62002.0,0.23539145]
[1728197704703,0.064516,62003.0,62002.0,0.23539145]
[1728197704906,0.064516,62003.0,62002.0,0.13292973]
[1728197705107,0.064516,62003.0,62002.0,0.23539793]
[1728197705108,0.425316,62003.0,62002.0,0.23539793]
[1728197705313,0.064516,62003.0,62002.0,0.23539793]
[1728197705498,0.425316,62003.0,62002.0,0.23539766]
[1728197706414,0.064516,62003.0,62002.0,0.23539766]
[1728197706611,0.425316,62003.0,62002.0,0.23539766]
[1728197706911,0.064516,62003.0,62002.0,0.23539766]
[1728197707705,0.425316,62003.0,62002.0,0.23539766]
[1728197707910,0.064516,62003.0,62002.0,0.23539766]
[1728197708816,0.425316,62003.0,62002.0,0.23539766]
[1728197709006,0.425316,62003.0,62002.0,0.03612131]
[1728197709209,0.064516,62003.0,62002.0,0.03612131]
[1728197709408,0.425316,62003.0,62002.0,0.03612131]
[1728197709609,0.064516,62003.0,62002.0,0.03612131]
[1728197709809,0.425316,62003.0,62002.0,0.03612131]
[1728197710017,0.064516,62003.0,62002.0,0.03612131]
[1728197710718,0.425316,62003.0,62002.0,0.03612131]
[1728197711107,0.064516,62003.0,62002.0,0.03612131]
[1728197712114,0.425316,62003.0,62002.0,0.03612131]
[1728197712514,0.064516,62003.0,62002.0,0.03612131]
[1728197712910,0.425316,62003.0,62002.0,0.03612131]
[1728197713112,0.064516,62003.0,62002.0,0.03612131]
[1728197713319,0.425316,62003.0,62002.0,0.03612131]
[1728197713713,0.064516,62003.0,62002.0,0.03612131]
[1728197714526,0.425316,62003.0,62002.0,0.03612131]
[1728197714717,0.064516,62003.0,62002.0,0.03612131]
[1728197715616,0.425316,62003.0,62002.0,0.03612131]
[1728197716020,0.425316,62003.0,62002.0,0.1386019]
[1728197717711,0.064516,62003.0,62002.0,0.1386019]
[1728197718513,0.425316,62003.0,62002.0,0.1386019]
[1728197718720,0.064516,62003.0,62002.0,0.1386019]
[1728197719527,0.425316,62003.0,62002.0,0.1386019]
[1728197720029,0.064516,62003.0,62002.0,0.1386019]
[1728197720220,0.425316,62003.0,62002.0,0.1386019]
[1728197721222,0.425316,62003.0,62002.0,0.13048059]
[1728197721533,0.064518,62001.0,62000.0,0.0113]
[1728197721826,0.535316,62003.0,61997.0,0.08069379]
[1728197721827,0.064521,61998.0,61997.0,0.08069379]
[1728197722029,0.064522,61997.0,61996.0,0.08069379]
[1728197722223,0.064522,61997.0,61993.0,0.0113]
[1728197722224,0.064523,61996.0,61995.0,0.08069379]
[1728197722427,0.064524,61995.0,61994.0,0.08069379]
[1728197722734,0.064524,61995.0,61994.0,0.18341587]
[1728197723324,0.064524,61995.0,61994.0,0.08069379]
[1728197723520,0.064525,61994.0,61993.0,0.08069379]
[1728197723723,0.064525,61994.0,61993.0,0.18340566]
[1728197724124,0.0316,61996.0,61990.0,0.14417109]
[1728197724125,0.064526,61993.0,61990.0,0.14417109]
[1728197724329,0.064526,61993.0,61991.0,0.06557244]
[1728197724531,0.064526,61993.0,61992.0,0.06557244]
[1728197725226,0.065526,61993.0,61992.0,0.06557244]
[1728197725429,0.066526,61993.0,61992.0,0.06557244]
[1728197725933,0.066526,61993.0,61992.0,0.02622017]
[1728197726135,0.066526,61993.0,61992.0,0.06548263]
[1728197726136,0.175526,61993.0,61992.0,0.06548263]
[1728197726431,0.176526,61993.0,61992.0,0.002]
[1728197728723,0.176526,61993.0,61992.0,0.001]
[1728197728925,0.176526,61993.0,61992.0,0.027]
[1728197728926,0.537326,61993.0,61992.0,0.027]
[1728197730128,0.537326,61993.0,61987.0,0.0113]
[1728197730336,0.064531,61988.0,61987.0,0.0113]
[1728197730526,0.064537,61983.0,61982.0,0.0113]
[1728197730727,0.064541,61979.0,61978.0,0.0113]
[1728197730922,0.064541,61979.0,61978.0,0.02522519]
[1728197732032,0.064541,61979.0,61976.0,0.11]
[1728197732235,0.065541,61979.0,61978.0,0.014]
[1728197732433,0.066541,61979.0,61978.0,0.027]
[1728197734437,0.066541,61979.0,61978.0,0.014]
[1728197734935,0.066541,61979.0,61978.0,0.03922519]
[1728197735538,0.066541,61979.0,61978.0,0.03922526]
[1728197736435,0.066541,61979.0,61978.0,0.014]
[1728197737128,0.066541,61979.0,61978.0,0.03922526]
[1728197737842,0.066541,61979.0,61978.0,0.014]
[1728197743546,0.427341,61979.0,61978.0,0.014]
[1728197745945,0.066541,61979.0,61978.0,0.014]
[1728197746147,0.427341,61979.0,61978.0,0.014]
[1728197747156,0.066541,61979.0,61978.0,0.014]
[1728197747545,0.427341,61979.0,61978.0,0.014]
[1728197749145,0.427341,61979.0,61978.0,0.06221743]
[1728197750252,0.427341,61979.0,61978.0,0.014]
[1728197751341,0.066541,61979.0,61978.0,0.014]
[1728197751542,0.427341,61979.0,61978.0,0.124]
[1728197751748,0.427341,61979.0,61978.0,0.18829788]
[1728197752046,0.427341,61979.0,61978.0,0.124]
[1728197752557,0.066541,61979.0,61978.0,0.124]
[1728197755243,0.066541,61979.0,61978.0,0.30779984]
[1728197756157,0.066541,61979.0,61978.0,0.22710605]
[1728197758352,0.066541,61979.0,61978.0,0.22721442]
[1728197760351,0.066541,61979.0,61978.0,0.32402284]
[1728197760957,0.066541,61979.0,61978.0,0.22721442]
[1728197761256,0.066541,61979.0,61978.0,0.124]
[1728197768163,0.066541,61979.0,61978.0,0.22729891]
[1728197774358,0.066541,61979.0,61978.0,0.11729891]
[1728197775260,0.066541,61979.0,61978.0,0.30557082]
[1728197775665,0.066541,61979.0,61978.0,0.11729891]
[1728197776061,0.066541,61979.0,61978.0,0.11692584]
[1728197778261,0.066541,61979.0,61978.0,0.2396467]
[1728197780878,0.066541,61979.0,61978.0,0.23972034]
[1728197783167,0.066541,61979.0,61978.0,0.11697641]
[1728197790668,0.066541,61979.0,61978.0,0.11700956]
[1728197793671,0.066541,61979.0,61978.0,0.23980104]
[1728197798385,0.066541,61979.0,61978.0,0.11700956]
[1728197800293,0.066541,61979.0,61978.0,0.11702627]
[1728197805297,0.066541,61979.0,61978.0,0.11702056]
[1728197806409,0.066541,61979.0,61978.0,0.23982935]
[1728197808400,0.066541,61979.0,61978.0,0.23975452]
[1728197810202,0.066541,61979.0,61978.0,0.23975009]
[1728197810715,0.066541,61979.0,61978.0,0.34975009]
[1728197813308,0.066541,61979.0,61978.0,0.22698998]
[1728197816409,0.002,61979.0,61978.0,0.45397368]
[1728197816811,0.002,61979.0,61978.0,0.35711865]
[1728197817512,0.002,61979.0,61978.0,0.45391859]
[1728197818515,0.002,61979.0,61978.0,0.35711865]
[1728197818922,0.002,61979.0,61978.0,0.35711423]
[1728197821210,0.002,61979.0,61978.0,0.35711505]
[1728197821612,0.002,61979.0,61978.0,0.29153198]
[1728197821809,0.002,61979.0,61978.0,0.35711505]
[1728197822529,0.002,61979.0,61978.0,0.47978671]
[1728197823026,0.002,61979.0,61978.0,0.35711505]
[1728197823412,0.002,61979.0,61978.0,0.47977687]
[1728197823617,0.002,61979.0,61978.0,0.35711505]
[1728197824020,0.002,61979.0,61978.0,0.47978215]
[1728197828029,0.002,61979.0,61978.0,0.47876195]
[1728197828422,0.002,61979.0,61978.0,0.35660719]
[1728197832330,0.002,61979.0,61978.0,0.29102412]
[1728197832534,0.002,61979.0,61978.0,0.35660648]
[1728197835533,0.002,61979.0,61978.0,0.35660717]
[1728197835929,0.002,61979.0,61978.0,0.33476283]
[1728197836129,0.002,61979.0,61978.0,0.43725256]
[1728197836434,0.002,61979.0,61978.0,0.45337111]
[1728197836836,0.002,61979.0,61978.0,0.35661478]
[1728197838138,0.002,61979.0,61978.0,0.45337111]
[1728197838439,0.002,61979.0,61978.0,0.35661478]
[1728197838641,0.002,61979.0,61978.0,0.45337111]
[1728197839037,0.002,61979.0,61978.0,0.4533719]
[1728197839740,0.002,61979.0,61978.0,0.47884847]
[1728197842443,0.002,61979.0,61978.0,0.41326463]
[1728197842650,0.002,61979.0,61978.0,0.47884857]
[1728197842936,0.002,61979.0,61978.0,0.41326463]
[1728197843143,0.002,61979.0,61978.0,0.47884911]
[1728197846441,0.002,61979.0,61978.0,0.4788481]
[1728197846857,0.066541,61979.0,61978.0,0.3043061]
[1728197849150,0.066541,61979.0,61978.0,0.1820732]
[1728197849860,0.066541,61979.0,61978.0,0.30393363]
[1728197850351,0.066541,61979.0,61978.0,0.1820732]
[1728197850551,0.066541,61979.0,61978.0,0.30394656]
[1728197851143,0.066541,61979.0,61978.0,0.1820732]
[1728197851546,0.066541,61979.0,61978.0,0.27890021]
[1728197853058,0.066541,61979.0,61978.0,0.1820732]
[1728197854166,0.066541,61979.0,61978.0,0.11648973]
[1728197854452,0.066541,61979.0,61978.0,0.18207478]
[1728197856858,0.066541,61979.0,61978.0,0.18182652]
[1728197858554,0.066541,61979.0,61978.0,0.30369553]
[1728197861053,0.066541,61979.0,61978.0,0.23811048]
[1728197861352,0.066541,61979.0,61978.0,0.30369553]
[1728197864647,0.066541,61979.0,61978.0,0.2633355]
[1728197864856,0.066541,61979.0,61978.0,0.30369553]
[1728197866557,0.066541,61979.0,61978.0,0.30366236]
[1728197866758,0.066541,61979.0,61978.0,0.18181189]
[1728197867955,0.066541,61979.0,61978.0,0.11622684]
[1728197868160,0.066541,61979.0,61978.0,0.18181189]
[1728197868658,0.066541,61979.0,61978.0,0.18184384]
[1728197872570,0.066541,61979.0,61978.0,0.30390857]
[1728197873451,0.066541,61979.0,61978.0,0.18184384]
[1728197875255,0.066541,61979.0,61978.0,0.11625879]
[1728197875450,0.066541,61979.0,61978.0,0.18184384]
[1728197876265,0.066541,61979.0,61978.0,0.18200938]
[1728197877258,0.066541,61979.0,61978.0,0.27884431]
[1728197878759,0.066541,61979.0,61978.0,0.18200938]
[1728197881460,0.066541,61979.0,61978.0,0.30350099]
[1728197888574,0.066541,61979.0,61978.0,0.18200938]
[1728197894372,0.066541,61979.0,61978.0,0.18151048]
[1728197895673,0.066541,61979.0,61978.0,0.11592543]
[1728197895870,0.066541,61979.0,61978.0,0.18151044]
[1728197896568,0.066541,61979.0,61978.0,0.30300098]
[1728197899184,0.066541,61979.0,61978.0,0.30300774]
[1728197903585,0.066541,61979.0,61978.0,0.18151322]
[1728197903995,0.066541,61979.0,61978.0,0.11592821]
[1728197904195,0.066541,61979.0,61978.0,0.18169637]
[1728197905801,0.066541,61979.0,61978.0,0.1161111]
[1728197905999,0.066541,61979.0,61978.0,0.18169637]
[1728197907199,0.066541,61979.0,61978.0,0.1161111]
[1728197908890,0.066541,61979.0,61978.0,0.014]
[1728197909094,0.066541,61979.0,61978.0,0.11616708]
[1728197911789,0.066541,61979.0,61978.0,0.23792477]
[1728197911986,0.066541,61979.0,61978.0,0.23798219]
[1728197913900,0.066541,61979.0,61978.0,0.11616354]
[1728197914893,0.066541,61979.0,61978.0,0.18174871]
[1728197916191,0.066541,61979.0,61978.0,0.11616354]
[1728197916385,0.066541,61979.0,61978.0,0.14138899]
[1728197916590,0.066541,61979.0,61978.0,0.18174972]
[1728197918692,0.066541,61979.0,61978.0,0.18550825]
[1728197918894,0.066541,61979.0,61978.0,0.16028336]
[1728197919796,0.066541,61979.0,61978.0,0.09469718]
[1728197919999,0.066541,61979.0,61978.0,0.1602833]
[1728197924504,0.066541,61979.0,61978.0,0.262394]
[1728197925802,0.066541,61979.0,61978.0,0.18169682]
[1728197926705,0.066541,61979.0,61978.0,0.1161107]
[1728197927114,0.066541,61979.0,61978.0,0.18169693]
[1728197927305,0.066541,61979.0,61978.0,0.1161107]
[1728197927608,0.066541,61979.0,61978.0,0.15647163]
[1728197927811,0.066541,61979.0,61978.0,0.18169721]
[1728197928009,0.066541,61979.0,61978.0,0.18169716]
[1728197928209,0.066541,61979.0,61978.0,0.1161107]
[1728197928604,0.066541,61979.0,61978.0,0.11613919]
[1728197928806,0.066541,61979.0,61978.0,0.11613726]
[1728197929204,0.066541,61979.0,61978.0,0.18172354]
[1728197929600,0.066541,61979.0,61978.0,0.11613726]
[1728197929800,0.066541,61979.0,61978.0,0.212985]
[1728197932616,0.066541,61979.0,61978.0,0.27857152]
[1728197932817,0.066541,61979.0,61978.0,0.212985]
[1728197933318,0.066541,61979.0,61978.0,0.18172364]
[1728197933819,0.066541,61979.0,61978.0,0.11613726]
[1728197934012,0.066541,61979.0,61978.0,0.27806353]
[1728197934311,0.066541,61979.0,61978.0,0.18121328]
[1728197934714,0.066541,61979.0,61978.0,0.11562685]
[1728197938124,0.066541,61979.0,61978.0,0.23676541]
[1728197938927,0.066541,61979.0,61978.0,0.11562685]
[1728197939134,0.066541,61979.0,61978.0,0.11562862]
[1728197941040,0.176541,61979.0,61978.0,0.11562862]
[1728197949435,0.176541,61979.0,61978.0,0.014]
[1728197957839,0.176541,61979.0,61978.0,0.2125215]
[1728197961738,0.176541,61979.0,61978.0,0.1156517]
[1728197963643,0.176541,61979.0,61978.0,0.09472483]
[1728197967551,0.176541,61979.0,61978.0,0.014]
[1728197967752,0.3242,62007.0,61979.0,0.48404]
[1728197967961,0.0076,61988.0,61987.0,0.064532]
[1728197968257,0.0076,61994.0,61987.0,0.60443986]
[1728197968557,0.0076,61994.0,61991.0,0.11]
[1728197968758,0.3608,61997.0,61991.0,0.11]
[1728197969451,0.3608,61997.0,61991.0,0.174528]
[1728197969645,0.0184203,61992.0,61991.0,0.22280265]
[1728197970360,0.0304203,61992.0,61991.0,0.22280265]
[1728197970543,0.0304203,61992.0,61991.0,0.174528]
[1728197971562,0.0294203,61992.0,61991.0,0.2389371]
[1728197971747,0.0164203,61992.0,61991.0,0.2389371]
[1728197972365,0.0076,61998.0,61991.0,1.68190547]
[1728197972658,0.064514,62006.0,61997.0,0.174522]
[1728197972659,0.0038,62001.0,61997.0,0.174522]
[1728197972871,0.064514,62006.0,62000.0,0.11]
[1728197973059,0.064514,62006.0,62004.0,0.11]
[1728197975054,0.092514,62006.0,62004.0,0.111]
[1728197975767,0.078514,62006.0,62004.0,0.001]
[1728197975960,0.092514,62006.0,62004.0,0.001]
[1728197979067,0.028,62006.0,62004.0,0.001]
[1728197979267,0.064514,62005.0,62004.0,0.001]
[1728197980371,0.174514,62005.0,62004.0,0.001]
[1728197981268,0.174514,62005.0,62002.0,0.0113]
[1728197981269,0.11,62005.0,62002.0,0.0113]
[1728197981469,0.064515,62004.0,62002.0,0.0113]
[1728197982463,0.064515,62004.0,62002.0,0.0123]
[1728197982666,0.078515,62004.0,62002.0,0.0123]
[1728197983875,0.064516,62003.0,62002.0,0.0123]
[1728197984068,0.064516,62003.0,62002.0,0.0113]
[1728197984268,0.064516,62003.0,62002.0,0.0123]
[1728197984865,0.064516,62003.0,62002.0,0.0113]
[1728197985070,0.077516,62003.0,62002.0,0.0123]
[1728197985572,0.091516,62003.0,62002.0,0.0123]
[1728197990664,0.122216,62003.0,62002.0,0.0123]
[1728197994576,0.483016,62003.0,62002.0,0.0123]
[1728197995370,0.122216,62003.0,62002.0,0.0123]
[1728197995581,0.483016,62003.0,62002.0,0.0123]
[1728198004108,0.452316,62003.0,62002.0,0.0123]
[1728198004307,0.452316,62003.0,62002.0,0.07661312]
[1728198005009,0.452316,62003.0,62002.0,0.0123]
[1728198005608,0.3878,62003.0,62002.0,0.0123]
[1728198009480,0.027,62003.0,62002.0,0.0123]
[1728198011892,0.091516,62003.0,62002.0,0.0123]
[1728198018594,0.091516,62003.0,62002.0,0.07680719]
[1728198020106,0.091516,62003.0,62002.0,0.0123]
[1728198027288,0.091516,62003.0,62002.0,0.11364063]
[1728198028187,0.091516,62003.0,62002.0,0.11370986]
[1728198029398,0.091516,62003.0,62002.0,0.19431304]
[1728198030239,0.091516,62003.0,62002.0,0.11370986]
[1728198030488,0.091516,62003.0,62002.0,0.19433005]
[1728198031800,0.091516,62003.0,62002.0,0.0123]
[1728198033008,0.091516,62003.0,62002.0,0.076817]
[1728198037699,0.091516,62003.0,62002.0,0.1251856]
[1728198038096,0.091516,62003.0,62002.0,0.076817]
[1728198038802,0.091516,62003.0,62002.0,0.15743719]
[1728198040342,0.091516,62003.0,62002.0,0.25892722]
[1728198040901,0.091516,62003.0,62002.0,0.15743719]
[1728198042593,0.091516,62003.0,62002.0,0.076817]
[1728198045016,0.091516,62003.0,62002.0,0.15743719]
[1728198045705,0.091516,62003.0,62002.0,0.076817]
[1728198046102,0.091516,62003.0,62002.0,0.15743719]
[1728198046805,0.091516,62003.0,62002.0,0.14131143]
[1728198047410,0.091516,62003.0,62002.0,0.076817]
[1728198047708,0.091516,62003.0,62002.0,0.14131317]
[1728198048603,0.091516,62003.0,62002.0,0.076817]
[1728198051102,0.091516,62003.0,62002.0,0.14132107]
[1728198052610,0.091516,62003.0,62002.0,0.076817]
[1728198053816,0.091516,62003.0,62002.0,0.17846189]
[1728198054909,0.091516,62003.0,62002.0,0.076817]
[1728198055211,0.091516,62003.0,62002.0,0.17847968]
[1728198055806,0.091516,62003.0,62002.0,0.076817]
[1728198056110,0.091516,62003.0,62002.0,0.17849216]
[1728198056300,0.091516,62003.0,62002.0,0.076817]
[1728198063208,0.091516,62003.0,62002.0,0.15750113]
[1728198063609,0.091516,62003.0,62002.0,0.076817]
[1728198064516,0.027,62003.0,62002.0,0.076817]
[1728198065015,0.027,62003.0,62002.0,0.15750113]
[1728198065315,0.027,62003.0,62002.0,0.076817]
[1728198066007,0.027,62003.0,62002.0,0.15750113]
[1728198066318,0.027,62003.0,62002.0,0.076817]
[1728198066511,0.027,62003.0,62002.0,0.15750113]
[1728198066902,0.027,62003.0,62002.0,0.076817]
[1728198067107,0.027,62003.0,62002.0,0.32489494]
[1728198067311,0.027,62003.0,62002.0,0.32489375]
[1728198069118,0.027,62003.0,62002.0,0.24421049]
[1728198069822,0.027,62003.0,62002.0,0.24420825]
[1728198071520,0.091516,62003.0,62002.0,0.17969125]
[1728198071717,0.091516,62003.0,62002.0,0.11413171]
[1728198075111,0.201516,62003.0,62002.0,0.11413171]
[1728198075617,0.201516,62003.0,62002.0,0.09296447]
[1728198075867,0.201516,62003.0,62002.0,0.19490474]
[1728198076138,0.201516,62003.0,62002.0,0.19489968]
[1728198076316,0.201516,62003.0,62002.0,0.09296447]
[1728198076520,0.201516,62003.0,62002.0,0.0123]
[1728198077921,0.201516,62003.0,62002.0,0.19497936]
[1728198078319,0.201516,62003.0,62002.0,0.09296447]
[1728198079516,0.201516,62003.0,62002.0,0.0123]
[1728198082859,0.562316,62003.0,62002.0,0.0123]
[1728198083323,0.201516,62003.0,62002.0,0.0123]
[1728198083520,0.562316,62003.0,62002.0,0.0123]
[1728198083920,0.201516,62003.0,62002.0,0.0123]
[1728198084121,0.562316,62003.0,62002.0,0.0123]
[1728198089219,0.201516,62003.0,62002.0,0.0123]
[1728198089634,0.562316,62003.0,62002.0,0.0123]
[1728198090628,0.201516,62003.0,62002.0,0.0123]
[1728198090826,0.562316,62003.0,62002.0,0.0123]
[1728198092338,0.201516,62003.0,62002.0,0.0123]
[1728198092592,0.562316,62003.0,62002.0,0.07678659]
[1728198093323,0.562316,62003.0,62002.0,0.0123]
[1728198094022,0.562316,62003.0,62002.0,0.07678712]
[1728198094334,0.562316,62003.0,62002.0,0.0123]
[1728198094734,0.201516,62003.0,62002.0,0.0123]
[1728198099334,0.201516,62003.0,62002.0,0.06067437]
[1728198100835,0.201516,62003.0,62002.0,0.0123]
[1728198101026,0.201516,62003.0,62002.0,0.06068408]
[1728198101635,0.201516,62003.0,62002.0,0.0123]
[1728198112154,0.562316,62003.0,62002.0,0.0123]
[1728198121445,0.452316,62003.0,62002.0,0.0123]
[1728198122651,0.091516,62003.0,62002.0,0.0123]
[1728198122846,0.452316,62003.0,62002.0,0.0123]
[1728198124052,0.091516,62003.0,62002.0,0.0123]
[1728198124352,0.452316,62003.0,62002.0,0.0123]
[1728198124696,0.091516,62003.0,62002.0,0.0123]
[1728198124953,0.452316,62003.0,62002.0,0.0123]
[1728198126651,0.091516,62003.0,62002.0,0.0123]
[1728198135244,0.091516,62003.0,62002.0,0.19525484]
[1728198136344,0.091516,62003.0,62002.0,0.07683812]
[1728198137869,0.091516,62003.0,62002.0,0.18683812]
[1728198138325,0.027,62003.0,62002.0,0.1223]
[1728198138468,0.027,62003.0,62002.0,0.186817]
[1728198139152,0.027,62003.0,62002.0,0.25237699]
[1728198139656,0.027,62003.0,62002.0,0.186817]
[1728198139853,0.027,62003.0,62002.0,0.25237663]
[1728198141353,0.027,62003.0,62002.0,0.186817]
[1728198141559,0.091516,62003.0,62002.0,0.186817]
[1728198143060,0.091516,62003.0,62002.0,0.1223]
[1728198144472,0.091516,62003.0,62002.0,0.3050781]
[1728198145985,0.091516,62003.0,62002.0,0.30502702]
[1728198147862,0.091516,62003.0,62002.0,0.22441363]
[1728198148081,0.091516,62003.0,62002.0,0.30502434]
[1728198148466,0.091516,62003.0,62002.0,0.3050008]
[1728198151375,0.091516,62003.0,62002.0,0.18678918]
[1728198159361,0.091516,62003.0,62002.0,0.2244381]
[1728198164581,0.091516,62003.0,62002.0,0.32124408]